Workbook

Sheet Daten_Kennz1
C3: Lernmodul M 04:
C4: Betriebswirtschaftliche Kennzahlen
C6: Thema: Bildung von Kennzahlen
C8: Die Betriebswirtin Annett W. erhält die Aufgabe, aus den nachfolgend aufgeführten Daten sinnvolle Kennzahlen
C9: zu ermitteln und diese Kennzahlen nach ihren Merkmalen den folgenden Kennzahlentypen zuzuordnen:
D11: Kurzzeichen | E11: Kennzahlentyp | F11: Merkmal
D12: A01 | E12: Absolute Kennzahlen | F12: Drücken einen betriebswirtschaftlichen Sachverhalt nur in einer (absoluten) Zahl aus.
D13: A02 | E13: Gliederungszahlen | F13: Bestimmen eine Teilmasse in Relation zu einer Gesamtmasse.
D14: A03 | E14: Beziehungszahlen | F14: Setzen zwei unterschiedliche Sachverhalte (mit absoluten Größen) in Zusammenhang.
D15: A04 | E15: Messzahlen | F15: Setzen gleichartige, aber zeitlich oder räumlich verschiedene Massen miteinander in Beziehung.
D16: A05 | E16: Indexzahlen | F16: Indexzahlen (Messzahlen) zeigen die zeitlichen Entwicklung betriebswirtschaftlicher Größen an.
D17: B01 | E17: Wirtschaftlichkeit | F17: Kennzeichnung des Verhältnisses zwischen Werteausstoß (Output) und Werteeinsatz (Input).
D18: B02 | E18: Rentabilität | F18: Kennzeichnung der Gewinnergiebigkeit des Umsatzprozesses von Unternehmen.
D19: B03 | E19: Produktivität | F19: Kennzeichnung des Wirkungsgrades des Einsatzes von Ressorcen (Personal.Maschinen).
D21: Daten zur Aufgabe:
D23: Nr. | E23: Kennzahl | G23: Maßeinheit | H23: Jahr 1 | I23: Jahr 2
D24: 1 | E24: Umsatz selbst hergestellter Erzeugnisse | G24: 1000 EUR | H24: 520 | I24: 590
D25: =D24+1 -> 2 | E25: Umsatz Handelswaren | G25: 1000 EUR | H25: 180 | I25: 240
D26: =D25+1 -> 3 | E26: Wareneinsatz | G26: 1000 EUR | H26: 110 | I26: 130
D27: =D26+1 -> 4 | E27: durchschnittl. Beschäftigte | G27: Personen | H27: 16 | I27: 18
D28: =D27+1 -> 5 | E28: Selbstkosten gesamt | G28: 1000 EUR | H28: 570 | I28: 680
D30: Bildung von Kennzahlen:
D32: a) Absolute Kennzahlen (Typ A 01)
D33: Nr. | E33: Kennzahl | G33: Jahr 1 | H33: Jahr 2 | I33: Veränderung auf ... [%] | J33: Veränderung um ... [%]
D34: 1 | E34: Umsatz gesamt [1000 EUR] (Z. 1 + Z. 2)
D35: =D34+1 -> 2 | E35: Roherlös Waren [1000 EUR] (Z. 2 - Z. 3)
D36: =D35+1 -> 3 | E36: Betriebsergebnis [1000 EUR] (Z. 1 + Z. 2 - Z.5)
D39: b) Gliederungskennzahlen (Typ A 02)
D40: Nr. | E40: Kennzahl | G40: Jahr 1 | H40: Jahr 2 | I40: Veränderung auf ... [%] | J40: Veränderung um ... [%]
D41: 4 | E41: Anteil selbst erstellter Produkte am Gesamt-Umsatz [%]
D42: 5 | E42: Anteil Umsatz Handelswaren am Gesamtumsatz [%]
D46: a) Absolute Kennzahlen (Typ A 01) | G46: Musterlösung
D47: Nr. | E47: Kennzahl | G47: Jahr 1 | H47: Jahr 2 | I47: Veränderung auf ... [%] | J47: Veränderung um ... [%]
D48: 1 | E48: Umsatz gesamt [1000 EUR] (Z. 1 + Z. 2) | G48: =H24+H25 -> 700 | H48: =I24+I25 -> 830 | I48: =H48*100/G48 -> 118.5714286 | J48: =H48*100/G48-100 -> 18.57142857
D49: =D48+1 -> 2 | E49: Roherlös Waren [1000 EUR] (Z. 2 - Z. 3) | G49: =H25-H26 -> 70 | H49: =I25-I26 -> 110 | I49: =H49*100/G49 -> 157.1428571 | J49: =H49*100/G49-100 -> 57.14285714
D50: =D49+1 -> 3 | E50: Betriebsergebnis [1000 EUR] (Z. 1 + Z. 2 - Z.5) | G50: =H24+H25-H28 -> 130 | H50: =I24+I25-I28 -> 150 | I50: =H50*100/G50 -> 115.3846154 | J50: =H50*100/G50-100 -> 15.38461538
D53: b) Gliederungskennzahlen (Typ A 02)
D54: Nr. | E54: Kennzahl | G54: Jahr 1 | H54: Jahr 2 | I54: Veränderung auf ... [%] | J54: Veränderung um ... [%]
D55: 4 | E55: Anteil selbst erstellter Produkte am Gesamt-Umsatz [%] | G55: =H24*100/G48 -> 74.28571429 | H55: =I24*100/H48 -> 71.08433735 | I55: =H55*100/G55 -> 95.69045412 | J55: =H55*100/G55-100 -> -4.309545876
D56: =D55+1 -> 5 | E56: Anteil Umsatz Handelswaren am Gesamtumsatz [%] | G56: =H25*100/G48 -> 25.71428571 | H56: =I25*100/H48 -> 28.91566265 | I56: =H56*100/G56 -> 112.4497992 | J56: =H56*100/G56-100 -> 12.4497992

Sheet Kennz2
C3: Lernmodul M 04:
C4: Betriebswirtschaftliche Kennzahlen
C6: Thema: Bildung von Kennzahlen
C8: Die Betriebswirtin Annett W. erhält die Aufgabe, aus den nachfolgend aufgeführten Daten sinnvolle Kennzahlen
C9: zu ermitteln und diese Kennzahlen nach ihren Merkmalen den folgenden Kennzahlentypen zuzuordnen:
D11: Kurzzeichen | E11: Kennzahlentyp | F11: Merkmal
D12: A01 | E12: Absolute Kennzahlen | F12: Drücken einen betriebswirtschaftlichen Sachverhalt nur in einer (absoluten) Zahl aus.
D13: A02 | E13: Gliederungszahlen | F13: Bestimmen eine Teilmasse in Relation zu einer Gesamtmasse.
D14: A03 | E14: Beziehungszahlen | F14: Setzen zwei unterschiedliche Sachverhalte (mit absoluten Größen) in Zusammenhang.
D15: A04 | E15: Messzahlen | F15: Setzen gleichartige, aber zeitlich oder räumlich verschiedene Massen miteinander in Beziehung.
D16: A05 | E16: Indexzahlen | F16: Indexzahlen (Messzahlen) zeigen die zeitlichen Entwicklung betriebswirtschaftlicher Größen an.
D17: B01 | E17: Wirtschaftlichkeit | F17: Kennzeichnung des Verhältnisses zwischen Werteausstoß (Output) und Werteeinsatz (Input).
D18: B02 | E18: Rentabilität | F18: Kennzeichnung der Gewinnergiebigkeit des Umsatzprozesses von Unternehmen.
D19: B03 | E19: Produktivität | F19: Kennzeichnung des Wirkungsgrades des Einsatzes von Ressorcen (Personal.Maschinen).
D21: Daten zur Aufgabe:
D23: Nr. | E23: Kennzahl | G23: Maßeinheit | H23: Jahr 1 | I23: Jahr 2
D24: 1 | E24: Umsatz selbst hergestellter Erzeugnisse | G24: 1000 EUR | H24: 520 | I24: 590
D25: =D24+1 -> 2 | E25: Umsatz Handelswaren | G25: 1000 EUR | H25: 180 | I25: 240
D26: =D25+1 -> 3 | E26: Wareneinsatz | G26: 1000 EUR | H26: 110 | I26: 130
D27: =D26+1 -> 4 | E27: durchschnittl. Beschäftigte | G27: Personen | H27: 16 | I27: 18
D28: =D27+1 -> 5 | E28: Selbstkosten gesamt | G28: 1000 EUR | H28: 570 | I28: 680
D30: Bildung von Kennzahlen:
D32: c) Beziehungszahlen (Typ A 03)
D33: Nr. | E33: Kennzahl | G33: Jahr 1 | H33: Jahr 2 | I33: Veränderung auf ... [%] | J33: Veränderung um ... [%]
D34: 1 | E34: Selbstkosten je Beschäftigter [EUR/Pers.)
D36: d) Messzahlen (Typ A 04)
D37: Nr. | E37: Kennzahl | G37: Jahr 1 | H37: Jahr 2 | I37: Veränderung auf ... [%] | J37: Veränderung um ... [%]
D38: 1 | E38: Kostensatz [EUR/100 EUR] (Selbstkosten zu Umsatz)
D40: e) Indexzahlen (Typ A 05)
D41: Nr. | E41: Kennzahl | G41: Jahr 1 | H41: Jahr 2 | I41: Veränderung auf ... [%] | J41: Veränderung um ... [%]
D42: 1 | E42: Veränderung der Beschäftigten [%]
D44: f) Wirtschaftlichkeit (Typ B 01)
D45: Nr. | E45: Kennzahl | G45: Jahr 1 | H45: Jahr 2 | I45: Veränderung auf ... [%] | J45: Veränderung um ... [%]
D46: 1 | E46: Umsatz gesamt (Output) zu Selbstkosten (Input) [EUR/ 100 EUR]
D48: g) Rentabilität (Typ B 02)
D49: Nr. | E49: Kennzahl | G49: Jahr 1 | H49: Jahr 2 | I49: Veränderung auf ... [%] | J49: Veränderung um ... [%]
D50: 1 | E50: Umsatzrentabilität (Betriebsergebnis zu Umsatz gesamt) [%]
D52: h) Produktivität (Typ B 03)
D53: Nr. | E53: Kennzahl | G53: Jahr 1 | H53: Jahr 2 | I53: Veränderung auf ... [%] | J53: Veränderung um ... [%]
D54: 1 | E54: Umsatz gesamt je Beschäftigter [EUR/Pers.]
D58: a) Absolute Kennzahlen (Typ A 01) | G58: Musterlösung
D59: Nr. | E59: Kennzahl | G59: Jahr 1 | H59: Jahr 2 | I59: Veränderung auf ... [%] | J59: Veränderung um ... [%]

Sheet Kennz2_L (hidden)
C3: Lernmodul M 04:
C4: Betriebswirtschaftliche Kennzahlen
C6: Thema: Bildung von Kennzahlen
C8: Die Betriebswirtin Annett W. erhält die Aufgabe, aus den nachfolgend aufgeführten Daten sinnvolle Kennzahlen
C9: zu ermitteln und diese Kennzahlen nach ihren Merkmalen den folgenden Kennzahlentypen zuzuordnen:
D11: Kurzzeichen | E11: Kennzahlentyp | F11: Merkmal
D12: A01 | E12: Absolute Kennzahlen | F12: Drücken einen betriebswirtschaftlichen Sachverhalt nur in einer (absoluten) Zahl aus.
D13: A02 | E13: Gliederungszahlen | F13: Bestimmen eine Teilmasse in Relation zu einer Gesamtmasse.
D14: A03 | E14: Beziehungszahlen | F14: Setzen zwei unterschiedliche Sachverhalte (mit absoluten Größen) in Zusammenhang.
D15: A04 | E15: Messzahlen | F15: Setzen gleichartige, aber zeitlich oder räumlich verschiedene Massen miteinander in Beziehung.
D16: A05 | E16: Indexzahlen | F16: Indexzahlen (Messzahlen) zeigen die zeitlichen Entwicklung betriebswirtschaftlicher Größen an.
D17: B01 | E17: Wirtschaftlichkeit | F17: Kennzeichnung des Verhältnisses zwischen Werteausstoß (Output) und Werteeinsatz (Input).
D18: B02 | E18: Rentabilität | F18: Kennzeichnung der Gewinnergiebigkeit des Umsatzprozesses von Unternehmen.
D19: B03 | E19: Produktivität | F19: Kennzeichnung des Wirkungsgrades des Einsatzes von Ressorcen (Personal.Maschinen).
D21: Daten zur Aufgabe:
D23: Nr. | E23: Kennzahl | G23: Maßeinheit | H23: Jahr 1 | I23: Jahr 2
D24: 1 | E24: Umsatz selbst hergestellter Erzeugnisse | G24: 1000 EUR | H24: 520 | I24: 590
D25: =D24+1 -> 2 | E25: Umsatz Handelswaren | G25: 1000 EUR | H25: 180 | I25: 240
D26: =D25+1 -> 3 | E26: Wareneinsatz | G26: 1000 EUR | H26: 110 | I26: 130
D27: =D26+1 -> 4 | E27: durchschnittl. Beschäftigte | G27: Personen | H27: 16 | I27: 18
D28: =D27+1 -> 5 | E28: Selbstkosten gesamt | G28: 1000 EUR | H28: 570 | I28: 680
D30: Bildung von Kennzahlen:
D32: c) Beziehungszahlen (Typ A 03)
D33: Nr. | E33: Kennzahl | G33: Jahr 1 | H33: Jahr 2 | I33: Veränderung auf ... [%] | J33: Veränderung um ... [%]
D34: 1 | E34: Selbstkosten je Beschäftigter [EUR/Pers.) | G34: =H28*1000/H27 -> 35625 | H34: =I28*1000/I27 -> 37777.77778 | I34: =H34*100/G34 -> 106.042885 | J34: =H34*100/G34-100 -> 6.04288499
D36: d) Messzahlen (Typ A 04)
D37: Nr. | E37: Kennzahl | G37: Jahr 1 | H37: Jahr 2 | I37: Veränderung auf ... [%] | J37: Veränderung um ... [%]
D38: 1 | E38: Kostensatz [EUR/100 EUR] (Selbstkosten zu Umsatz) | G38: =H28*100/(H24+H25) -> 81.42857143 | H38: =I28*100/(I24+I25) -> 81.92771084 | I38: =H38*100/G38 -> 100.6129782 | J38: =H38*100/G38-100 -> 0.6129782287
D40: e) Indexzahlen (Typ A 05)
D41: Nr. | E41: Kennzahl | G41: Jahr 1 | H41: Jahr 2 | I41: Veränderung auf ... [%] | J41: Veränderung um ... [%]
D42: 1 | E42: Veränderung der Beschäftigten [%] | I42: =I27*100/H27 -> 112.5 | J42: =I27*100/H27-100 -> 12.5
D44: f) Wirtschaftlichkeit (Typ B 01)
D45: Nr. | E45: Kennzahl | G45: Jahr 1 | H45: Jahr 2 | I45: Veränderung auf ... [%] | J45: Veränderung um ... [%]
D46: 1 | E46: Umsatz gesamt (Output) zu Selbstkosten (Input) [EUR/ 100 EUR] | G46: =(H24+H25)*100/H28 -> 122.8070175 | H46: =(I24+I25)*100/I28 -> 122.0588235 | I46: =H46*100/G46 -> 99.3907563 | J46: =H46*100/G46-100 -> -0.6092436975
D48: g) Rentabilität (Typ B 02)
D49: Nr. | E49: Kennzahl | G49: Jahr 1 | H49: Jahr 2 | I49: Veränderung auf ... [%] | J49: Veränderung um ... [%]
D50: 1 | E50: Umsatzrentabilität (Betriebsergebnis zu Umsatz gesamt) [%] | G50: =(H24+H25-H28)*100/(H24+H25) -> 18.57142857 | H50: =(I24+I25-I28)*100/(I24+I25) -> 18.07228916 | I50: =H50*100/G50 -> 97.31232623 | J50: =H50*100/G50-100 -> -2.687673772
D52: h) Produktivität (Typ B 03)
D53: Nr. | E53: Kennzahl | G53: Jahr 1 | H53: Jahr 2 | I53: Veränderung auf ... [%] | J53: Veränderung um ... [%]
D54: 1 | E54: Umsatz gesamt je Beschäftigter [EUR/Pers.] | G54: =(H24+H25)*1000/H27 -> 43750 | H54: =(I24+I25)*1000/I27 -> 46111.11111 | I54: =H54*100/G54 -> 105.3968254 | J54: =H54*100/G54-100 -> 5.396825397
D58: a) Absolute Kennzahlen (Typ A 01) | G58: Musterlösung
D59: Nr. | E59: Kennzahl | G59: Jahr 1 | H59: Jahr 2 | I59: Veränderung auf ... [%] | J59: Veränderung um ... [%]

Sheet Kennz3
C3: =Daten_Kennz1!C3 -> Lernmodul M 04:
C4: =Daten_Kennz1!C4 -> Betriebswirtschaftliche Kennzahlen
C6: Kennzahlen-Berechnung und Kennzahlen-Steuerung
C8: Problemstellung, Aufgaben:
C10: Die nachstehende Grafik (siehe "Modell") zeigt modellhaft wichtige betriebswirtschaftliche Zusammenhänge
C11: im Umsatzprozess eines Unternehmens.
C13: Ihre Aufgabe besteht in Folgendem: | H13: Nr. | I13: Größe | K13: Merkmal
C14: 1. Kennzeichen Sie, was im betrachtenen Beispiel | H14: 1 | I14: Personaleinsatz
D15: - die zu steuernden Ergebnisgrößen (Symbol "y"), | H15: 2 | I15: Arbeitsproduktivität
D16: - zu beachtende Paramter (Symbol "k") und | H16: 3 | I16: Kostensatz
D17: - die eigentlichen Steuergrößen (Symbol "u") | H17: 4 | I17: Leistung
C18: sein können! | H18: 5 | I18: Erlöse aus Umsatz
C19: Tragen Sie Ihre Antwort in die nebenstehenden Tabelle | H19: 6 | I19: Selbstkosten
C20: unter "Merkmal" mit dem entsprechenden Symbol ein! | H20: 7 | I20: Erfolg (Gewinn/Verlust)
H21: 8 | I21: Absatzpotenzial
C23: 2. Ermitteln Sie ferner mit Bezug auf die gegebenen Daten die Zahlenwerte für die noch offenen Größen!
C25: 3. Ordnen Sie jenen Größen "Drehfelder" (Menüpunkt "Entwicklungstools, Einfügen, Formularsteuerelemente")
C26: zu, die Sie als Steuergrößen gekenzeichnet haben. Tragen Sie sodann über "Steuerelement formatieren" die Ausgangs-
C27: werte in die Drehfelder ein und bestimmen Sie, in welchem Bereich diese Werte veränderbar sein sollen.
C28: Versuchen Sie sodann die Werte der Steuergrößen so zu ändern, dass das Gewinnziel in Höhe von | K28: 1000 | L28: [TEUR/a]
C29: erreicht wird!
C32: Modell:
G34: Arbeitsproduktivität | K34: Absatzpotenzial
G35: 100 | H35: [TEUR/Pers.] | K35: 12000 | L35: [TEUR/a]
E37: Personaleinsatz | I37: Leistung
J40: [TEUR/a]
E41: 100 | F41: [Pers./a]
L42: Ausnutzung des
L43: Abs.potenzials
G44: Kostensatz | M44: %
G45: 90 | H45: [EUR Kost./100 EUR Leist.]
K46: Erlöse
L47: [TEUR/a]
G50: Selbstkosten | H50: [TEUR/a] | K50: =IF(K51>=0,"Gewinn","Verlust") -> Gewinn
L51: [TEUR/a]
K54: Gewinnziel
K55: =K28 -> 1000 | L55: [TEUR/a]
K58: Abweichung
K59: =Gewinn1-Gewinnziel1 -> -1000 | L59: [TEUR/a]

Sheet Kennz3_L (hidden)
C3: =Daten_Kennz1!C3 -> Lernmodul M 04:
C4: =Daten_Kennz1!C4 -> Betriebswirtschaftliche Kennzahlen
C6: Kennzahlen-Berechnung und Kennzahlen-Steuerung
C8: Problemstellung, Aufgaben:
C10: Die nachstehende Grafik (siehe "Modell") zeigt modellhaft wichtige betriebswirtschaftliche Zusammenhänge
C11: im Umsatzprozess eines Unternehmens.
C13: Ihre Aufgabe besteht in Folgendem: | H13: Nr. | I13: Größe | K13: Merkmal
C14: 1. Kennzeichen Sie, was im betrachtenen Beispiel | H14: 1 | I14: Personaleinsatz | K14: u
D15: - die zu steuernden Ergebnisgrößen (Symbol "e"), | H15: 2 | I15: Arbeitsproduktivität | K15: u
D16: - zu beachtende Paramter (Symbol "k") und | H16: 3 | I16: Kostensatz | K16: u
D17: - die eigentlichen Steuergrößen (Symbol "u") | H17: 4 | I17: Leistung | K17: y
C18: sein können! | H18: 5 | I18: Erlöse aus Umsatz | K18: y
C19: Tragen Sie Ihre Antwort in die nebenstehenden Tabelle | H19: 6 | I19: Selbstkosten | K19: y
C20: unter "Merkmal" mit dem entsprechenden Symbol ein! | H20: 7 | I20: Erfolg (Gewinn/Verlust) | K20: y
H21: 8 | I21: Absatzpotenzial | K21: k
C23: 2. Ermitteln Sie ferner mit Bezug auf die gegebenen Daten die Zahlenwerte für die noch offenen Größen!
C25: 3. Ordnen Sie jenen Größen "Drehfelder" (Menüpunkt "Entwicklungstools, Einfügen, Formularsteuerelemente")
C26: zu, die Sie als Steuergrößen gekenzeichnet haben. Tragen Sie sodann über "Steuerelement formatieren" die Ausgangs-
C27: werte in die Drehfelder ein und bestimmen Sie, in welchem Bereich diese Werte veränderbar sein sollen.
C28: Versuchen Sie sodann die Werte der Steuergrößen so zu ändern, dass das Gewinnziel in Höhe von | K28: 1000 | L28: [TEUR/a]
C29: erreicht wird!
C32: Modell:
G34: Arbeitsproduktivität | K34: Absatzpotenzial
G35: 100 | H35: [TEUR/Pers.] | K35: 12000 | L35: [TEUR/a]
E37: Personaleinsatz | I37: Leistung
I40: =Personal1*arbprod1 -> 10000 | J40: [TEUR/a]
E41: 100 | F41: [Pers./a]
L42: Ausnutzung des
L43: Abs.potenzials
G44: Kostensatz | L44: =Erloese1*100/AbsPot1 -> 83.33333333 | M44: %
G45: 90 | H45: [EUR Kost./100 EUR Leist.]
K46: Erlöse
K47: =I40 -> 10000 | L47: [TEUR/a]
G50: Selbstkosten | H50: [TEUR/a] | K50: =IF(K51>=0,"Gewinn","Verlust") -> Gewinn
G51: =Leistung1*kostsatz1/100 -> 9000 | K51: =Erloese1-Selbstkosten1 -> 1000 | L51: [TEUR/a]
K54: Gewinnziel
K55: =K28 -> 1000 | L55: [TEUR/a]
K58: Abweichung
K59: =Gewinn1-Gewinnziel1 -> 0 | L59: [TEUR/a]
